bitfinex/quotes_ETHUSD_20251215
["timestamp","ask_amount","ask_price","bid_price","bid_amount"]
[1765772357435,29.84517808,3118.4,3118.3,0.00867]
[1765772357635,27.83705808,3118.4,3118.3,0.00867]
[1765772357839,20.46561437,3118.4,3118.3,0.00867]
[1765772358052,39.43802637,3118.4,3118.3,0.00867]
[1765772358251,31.41161337,3118.4,3118.3,0.00867]
[1765772358564,26.17131337,3118.4,3118.3,0.00867]
[1765772359135,34.70485437,3118.4,3118.3,0.00867]
[1765772359338,33.85061537,3118.4,3118.3,0.00867]
[1765772359537,20.04438737,3118.4,3118.3,0.00867]
[1765772360068,22.86111537,3118.4,3118.3,0.00867]
[1765772360370,22.08144537,3118.4,3118.3,0.00867]
[1765772361163,33.45025137,3118.4,3118.3,0.00867]
[1765772361467,33.24485637,3118.4,3118.3,0.00867]
[1765772361769,25.93743237,3118.4,3118.3,0.00867]
[1765772362141,22.52999237,3118.4,3118.3,0.00867]
[1765772362571,21.20606837,3118.4,3118.3,0.00867]
[1765772363152,27.06948437,3118.4,3118.3,0.00867]
[1765772363360,18.73321237,3118.4,3118.3,0.00867]
[1765772363670,17.04720437,3118.4,3118.3,0.00867]
[1765772364172,23.68556437,3118.4,3118.3,0.00867]
[1765772364700,17.01264237,3118.4,3118.3,0.00867]
[1765772364975,14.06330808,3118.4,3118.3,0.00867]
[1765772365186,17.44930637,3118.4,3118.3,0.00867]
[1765772365950,14.64378337,3118.4,3118.3,0.00867]
[1765772366999,29.46897137,3118.4,3118.3,0.00867]
[1765772372378,28.96297137,3118.4,3118.3,0.00867]
[1765772372683,29.46897137,3118.4,3118.3,0.00867]
[1765772373002,23.19468337,3118.4,3118.3,0.00867]
[1765772373150,21.50291037,3118.4,3118.3,0.00867]
[1765772373595,17.43704337,3118.4,3118.3,0.00867]
[1765772374503,36.54599837,3118.4,3118.3,0.00867]
[1765772375079,40.99318699,3118.4,3118.3,0.00867]
[1765772375293,46.05035099,3118.4,3118.3,0.00467]
[1765772375796,46.05035099,3118.4,3118.3,0.00567]
[1765772377402,41.60316237,3118.4,3118.3,0.00567]
[1765772380370,14.64378337,3118.4,3118.3,0.00567]
[1765772380573,41.60316237,3118.4,3118.3,0.00567]
[1765772382503,14.64378337,3118.4,3118.3,0.00567]
[1765772382709,41.60316237,3118.4,3118.3,0.00567]
[1765772388713,14.64378337,3118.4,3118.3,0.00567]
[1765772388901,41.13656237,3118.4,3118.3,0.00567]
[1765772389085,41.59916237,3118.4,3118.3,0.00567]
[1765772391313,41.09316237,3118.4,3118.3,0.00567]
[1765772391501,46.04887115,3118.4,3118.3,0.00567]
[1765772392117,45.54287115,3118.4,3118.3,0.00567]
[1765772392310,46.04887115,3118.4,3118.3,0.00567]
[1765772393820,19.08949215,3118.4,3118.3,0.00567]
[1765772394022,46.04887115,3118.4,3118.3,0.00567]
[1765772394606,45.54287115,3118.4,3118.3,0.00567]
[1765772394922,46.04887115,3118.4,3118.3,0.00567]
[1765772397044,19.08949215,3118.4,3118.3,0.00567]
[1765772397207,46.04887115,3118.4,3118.3,0.00567]
[1765772399327,19.08949215,3118.4,3118.3,0.00567]
[1765772399553,46.04887115,3118.4,3118.3,0.00567]
[1765772400717,41.13656237,3118.4,3118.3,0.00567]
[1765772401029,41.59916237,3118.4,3118.3,0.00567]
[1765772401637,41.09316237,3118.4,3118.3,0.00567]
[1765772401930,16.09474437,3118.4,3118.3,0.98147]
[1765772402130,17.00624837,3118.4,3118.3,0.98147]
[1765772402335,10.11924799,3118.4,3118.3,0.98147]
[1765772402500,10.0447727,3118.4,3118.3,0.98147]
[1765772402707,10.4502767,3118.4,3118.3,0.98147]
[1765772402928,11.03075199,3118.4,3118.3,0.98147]
[1765772406450,7.31797929,3118.4,3118.3,0.98147]
[1765772406614,11.03075199,3118.4,3118.3,0.98147]
[1765772407411,7.82397929,3118.4,3118.3,0.98147]
[1765772408737,11.03075199,3118.4,3118.3,0.98147]
[1765772409317,10.52475199,3118.4,3118.3,0.98147]
[1765772409519,12.08451223,3118.4,3118.3,0.49317]
[1765772409731,12.08451223,3118.4,3118.3,0.98147]
[1765772409732,15.15113523,3118.4,3118.3,0.98147]
[1765772409916,12.08451223,3118.4,3118.3,0.98147]
[1765772410112,11.57851223,3118.4,3118.3,0.98147]
[1765772410337,11.03075199,3118.4,3118.3,0.98147]
[1765772412068,7.82397929,3118.4,3118.3,0.98147]
[1765772414261,7.243504,3118.4,3118.3,0.98147]
[1765772415137,10.4502767,3118.4,3118.3,0.98147]
[1765772415534,19.35201799,3118.4,3118.3,0.98147]
[1765772415739,16.70129053,3118.4,3118.3,0.98147]
[1765772417461,13.28789553,3118.4,3118.3,0.98147]
[1765772417957,7.243504,3118.4,3118.3,0.98147]
[1765772421070,6.838,3118.4,3118.3,0.98147]
[1765772427885,10.0447727,3118.4,3118.3,0.46167]
[1765772428404,10.0447727,3118.4,3118.3,0.91577]
[1765772428950,17.2738697,3118.4,3118.3,0.00567]
[1765772429176,25.69341884,3118.4,3118.3,0.00567]
[1765772429376,25.87426584,3118.4,3118.3,0.00567]
[1765772430292,32.93109884,3118.4,3118.3,0.00567]
[1765772430654,29.92336484,3118.4,3118.3,0.00567]
[1765772430861,28.51619884,3118.4,3118.3,0.00567]
[1765772431688,22.61922313,3118.4,3118.3,0.00567]
[1765772431987,27.19343193,3118.4,3118.3,0.00567]
[1765772432172,17.84888093,3118.4,3118.3,0.00567]
[1765772432364,44.80825993,3118.4,3118.3,0.00567]
[1765772437299,17.84888093,3118.4,3118.3,0.00567]
[1765772437468,44.80825993,3118.4,3118.3,0.00567]
[1765772446381,40.3625171,3118.4,3118.3,0.00567]
[1765772448439,44.81160015,3118.4,3118.3,0.00567]
[1765772448897,19.7358081,3118.4,3118.3,0.00567]
[1765772449097,20.2418081,3118.4,3118.3,0.00567]
[1765772449398,20.7017081,3118.4,3118.3,0.00567]
[1765772449599,20.2418081,3118.4,3118.3,0.00567]
[1765772449791,30.3264971,3118.4,3118.3,0.00567]
[1765772449998,30.0055231,3118.4,3118.3,0.00567]
[1765772451129,29.9185491,3118.4,3118.3,0.00567]
[1765772451436,24.0093791,3118.4,3118.3,0.00567]
[1765772451736,21.8104931,3118.4,3118.3,0.46557]
[1765772452031,16.9386661,3118.4,3118.3,0.46557]
[1765772452928,16.85368458,3118.4,3118.3,0.46557]
[1765772453234,18.10484058,3118.4,3118.3,0.46557]
[1765772453623,21.48284058,3118.4,3118.3,0.46557]
[1765772453922,18.10484058,3118.4,3118.3,0.46557]
[1765772454103,11.89465658,3118.4,3118.3,0.46557]
[1765772454303,11.89465658,3118.4,3118.3,0.95437]
[1765772454304,12.40065658,3118.4,3118.3,0.95437]
[1765772454734,17.74639858,3118.4,3118.3,0.95437]
[1765772455119,17.24039858,3118.4,3118.3,0.46557]
[1765772455313,22.77971158,3118.4,3118.3,0.46557]
[1765772455824,18.64306958,3118.4,3118.3,0.46557]
[1765772456133,17.40556958,3118.4,3118.3,0.46557]
[1765772457233,24.04963958,3118.4,3118.3,0.46557]
[1765772457906,22.42570058,3118.4,3118.3,0.46557]
[1765772458333,20.86923958,3118.4,3118.3,0.46557]
[1765772458735,19.90823958,3118.4,3118.3,0.46557]
[1765772459034,18.25956958,3118.4,3118.3,0.46557]
[1765772459338,22.17410058,3118.4,3118.3,0.46557]
[1765772460337,12.40265658,3118.4,3118.3,0.46557]
[1765772461020,12.40265658,3118.4,3118.3,0.94207]
[1765772461224,11.07623644,3118.4,3118.3,0.94207]
[1765772462435,11.07623644,3118.4,3118.3,0.46557]
[1765772462831,11.07623644,3118.4,3118.3,0.94207]
[1765772465831,11.07623644,3118.4,3118.3,0.46557]
[1765772465832,23.79526044,3118.4,3118.3,0.46557]
[1765772466027,20.21006336,3118.4,3118.3,0.46557]
[1765772466348,19.70406336,3118.4,3118.3,0.46557]
[1765772466551,20.21006336,3118.4,3118.3,0.46557]
[1765772466738,13.82634536,3118.4,3118.3,0.46557]
[1765772466917,16.41207236,3118.4,3118.3,0.46557]
[1765772467749,26.61520836,3118.4,3118.3,0.46557]
[1765772468057,23.17826236,3118.4,3118.3,0.46557]
[1765772468343,22.03759236,3118.4,3118.3,0.46557]
[1765772468750,26.29424136,3118.4,3118.3,0.46557]
[1765772468915,18.78117136,3118.4,3118.3,0.46557]
[1765772469249,13.82634536,3118.4,3118.3,0.94207]
[1765772469550,15.99152736,3118.4,3118.3,0.94207]
[1765772469850,25.63261936,3118.4,3118.3,0.46557]
[1765772471063,26.06401936,3118.4,3118.3,0.00567]
[1765772471353,21.96398636,3118.4,3118.3,0.49267]
[1765772471530,16.20871736,3118.4,3118.3,0.49267]
[1765772471727,15.91500936,3118.4,3118.3,0.49267]
[1765772471917,16.18939136,3118.4,3118.3,0.49267]
[1765772472116,13.82634536,3118.4,3118.3,0.96917]
[1765772472350,16.15817536,3118.4,3118.3,0.49267]
[1765772472652,13.82634536,3118.4,3118.3,0.96917]
[1765772472824,17.74787836,3118.4,3118.3,0.96917]
[1765772473252,16.85587836,3118.4,3118.3,0.96917]
[1765772473750,16.85587836,3118.4,3118.3,0.49267]
[1765772474047,27.99819136,3118.4,3118.3,0.49267]
[1765772474669,27.49596836,3118.4,3118.3,0.49267]
[1765772474850,27.14402036,3118.4,3118.3,0.49267]
[1765772475149,25.90652036,3118.4,3118.3,0.49267]
[1765772475848,23.96072036,3118.4,3118.3,0.49267]
[1765772476032,19.33099236,3118.4,3118.3,0.49267]
[1765772476342,19.33099236,3118.4,3118.3,0.96917]
[1765772476544,19.33099236,3118.4,3118.3,0.49267]
[1765772477048,13.82634536,3118.4,3118.3,0.49267]
[1765772477235,19.65194036,3118.4,3118.3,0.49267]
[1765772478053,13.82634536,3118.4,3118.3,0.49267]
[1765772478421,13.82634536,3118.4,3118.3,0.96917]
[1765772478624,10.57023644,3118.4,3118.3,0.96917]
[1765772478824,0.002,3118.4,3118.3,0.96917]
[1765772479047,0.508,3118.4,3118.3,0.96917]
[1765772492478,0.002,3118.4,3118.3,0.96917]
[1765772492683,0.508,3118.4,3118.3,0.96917]
[1765772493383,0.002,3118.4,3118.3,0.96917]
[1765772493680,3.7147727,3118.4,3118.3,0.49267]
[1765772494453,3.7147727,3118.4,3118.3,0.96687]
[1765772495180,3.2087727,3118.4,3118.3,0.96687]
[1765772495394,3.7147727,3118.4,3118.3,0.96687]
[1765772496182,4.1943727,3118.4,3118.3,0.00567]
[1765772496381,0.9876,3118.4,3118.3,0.00567]
[1765772496581,0.508,3118.4,3118.3,0.47747]
[1765772497259,0.508,3118.4,3118.3,0.95167]
[1765772500071,0.508,3118.4,3118.3,0.47747]
[1765772500266,0.508,3118.4,3118.3,0.95167]
[1765772503085,0.508,3118.4,3118.3,0.47747]
[1765772503994,0.508,3118.4,3118.3,0.95167]
[1765772504304,0.002,3118.4,3118.3,0.95167]
[1765772504474,0.508,3118.4,3118.3,0.95167]
[1765772505287,0.52085037,3118.4,3118.3,0.47747]
[1765772506184,3.72762307,3118.4,3118.3,0.47747]
[1765772506385,0.52085037,3118.4,3118.3,0.47747]
[1765772513694,3.72762307,3118.4,3118.3,0.47747]
[1765772513875,4.14672307,3118.4,3118.3,0.00567]
[1765772514079,3.72762307,3118.4,3118.3,0.00567]
[1765772514895,0.52085037,3118.4,3118.3,0.00567]
[1765772516896,0.52085037,3118.4,3118.3,0.47747]
[1765772520169,4.14742307,3118.4,3118.3,0.00567]
[1765772520807,4.96470949,3118.4,3118.3,0.00567]
[1765772520967,5.42370949,3118.4,3118.3,0.00567]
[1765772521406,4.96470949,3118.4,3118.3,0.00567]
[1765772522001,4.51283442,3118.4,3118.3,0.47397]
[1765772526406,4.51283442,3118.4,3118.3,0.00567]
[1765772526407,27.30177642,3118.4,3118.3,0.00567]
[1765772526575,20.78094742,3118.4,3118.3,0.00567]
[1765772526778,16.16680842,3118.4,3118.3,0.00567]
[1765772527271,16.74728371,3118.4,3118.3,0.00567]
[1765772527477,18.18669171,3118.4,3118.3,0.00567]
[1765772527981,8.68792371,3118.4,3118.3,0.00567]
[1765772528497,11.96397271,3118.4,3118.3,0.00567]
[1765772529495,23.81462071,3118.4,3118.3,0.00567]
[1765772530509,27.37470071,3118.4,3118.3,0.00567]
[1765772530678,25.39707071,3118.4,3118.3,0.00567]
[1765772530878,6.41631371,3118.4,3118.3,0.00567]
[1765772531104,10.05831971,3118.4,3118.3,0.00567]
[1765772531601,10.20431971,3118.4,3118.3,0.00567]
[1765772532579,8.41802071,3118.4,3118.3,0.00567]
[1765772532779,6.41631371,3118.4,3118.3,0.00567]
[1765772533300,8.70685571,3118.4,3118.3,0.00567]
[1765772533501,6.41631371,3118.4,3118.3,0.00567]
[1765772533704,13.72581471,3118.4,3118.3,0.00567]
[1765772533912,14.18481471,3118.4,3118.3,0.00567]
[1765772534681,19.86353271,3118.4,3118.3,0.00567]
[1765772534876,19.99198506,3118.4,3118.3,0.00567]
[1765772535606,21.61254306,3118.4,3118.3,0.00567]
[1765772536705,6.54476606,3118.4,3118.3,0.00567]
[1765772536909,20.05409506,3118.4,3118.3,0.00567]
[1765772537210,13.51544806,3118.4,3118.3,0.00567]
[1765772537406,6.49476606,3118.4,3118.3,0.00567]
[1765772539291,5.49681371,3118.4,3118.3,0.47397]
[1765772540409,5.49881371,3118.4,3118.3,0.47397]
[1765772542251,19.38610971,3118.4,3118.3,0.00567]
[1765772542412,18.99190371,3118.4,3118.3,0.00567]
[1765772542580,12.87788971,3118.4,3118.3,0.00567]
[1765772542785,6.41631371,3118.4,3118.3,0.00567]
[1765772543010,5.95731371,3118.4,3118.3,0.00567]
[1765772544816,8.14931371,3118.4,3118.3,0.00567]
[1765772545114,5.95731371,3118.4,3118.3,0.00567]
[1765772545616,9.03344671,3118.4,3118.3,0.00567]
[1765772546216,5.95731371,3118.4,3118.3,0.00567]
[1765772547391,8.18886271,3118.4,3118.3,0.00567]
[1765772547917,5.95731371,3118.4,3118.3,0.00567]
[1765772551100,5.49881371,3118.4,3118.3,0.46147]
[1765772551308,5.49881371,3118.4,3118.3,0.00567]
[1765772552122,5.99401371,3118.4,3118.3,0.00567]
[1765772552417,5.20880236,3118.4,3118.3,0.46147]
[1765772552600,5.20880236,3118.4,3118.3,0.95567]
[1765772552601,0.002,3118.4,3118.3,0.95567]
[1765772552798,0.508,3118.4,3118.3,0.95567]
[1765772553411,3.7147727,3118.4,3118.3,0.95567]
[1765772553615,0.508,3118.4,3118.3,0.95567]
[1765772555710,3.7147727,3118.4,3118.3,0.95567]
[1765772559209,3.7147727,3118.4,3118.3,0.46147]
[1765772559801,3.7147727,3118.4,3118.3,0.00567]
[1765772560303,4.2082727,3118.4,3118.3,0.00567]
[1765772561250,3.7147727,3118.4,3118.3,0.00567]
[1765772561452,4.2075727,3118.4,3118.3,0.00567]
[1765772562261,5.86153934,3118.4,3118.3,0.00567]
[1765772562555,24.01816926,3118.4,3118.3,0.00567]
[1765772563448,32.91729026,3118.4,3118.3,0.00567]
[1765772563960,37.45085385,3118.4,3118.3,0.00567]
[1765772564538,44.19195285,3118.4,3118.3,0.00567]
[1765772565146,39.74478403,3118.4,3118.3,0.00567]
[1765772565828,44.19368273,3118.4,3118.3,0.00567]
[1765772571351,44.19368273,3118.4,3118.3,1e-08]
[1765772572733,27.364883,3118.1,3118.0,0.001]
[1765772572964,37.30640606,3118.1,3118.0,0.001]
[1765772573161,37.54430228,3118.1,3118.0,0.001]
[1765772573384,37.67280168,3118.1,3118.0,0.001]
[1765772574256,0.58047529,3118.0,3117.9,0.001]
[1765772574467,30.11180273,3118.0,3117.9,0.001]
[1765772574651,30.07972766,3118.0,3117.9,0.001]
[1765772575048,33.28691175,3118.0,3117.9,0.001]
[1765772575357,37.73860489,3118.0,3117.9,0.001]
[1765772575561,37.86711295,3118.0,3117.9,0.001]
[1765772577175,37.86711295,3118.0,3117.5,0.001]
[1765772577176,30.57247858,3117.6,3117.5,0.001]
[1765772577374,36.56949738,3117.6,3117.5,0.001]
[1765772577672,37.05629738,3117.6,3117.5,0.001]
[1765772577870,37.18482196,3117.6,3117.5,0.001]
[1765772579549,41.6365151,3117.6,3117.5,0.001]
[1765772579749,44.84611823,3117.6,3117.5,0.001]
[1765772580657,0.98597929,3117.5,3116.9,0.001]
[1765772580863,32.4148018,3117.1,3116.9,0.001]
[1765772581071,32.9208018,3117.1,3116.9,0.001]
[1765772581269,33.53724331,3117.1,3116.9,0.001]
[1765772581466,37.90252278,3117.1,3116.9,0.001]
[1765772581659,41.28052278,3117.1,3116.9,0.001]
[1765772582748,45.73221592,3117.1,3116.9,0.001]
[1765772582976,41.28052278,3117.1,3116.9,0.001]
[1765772583880,14.32114378,3117.1,3116.9,0.001]
[1765772584180,41.28052278,3117.1,3116.9,0.001]
[1765772584385,4.36397929,3117.0,3116.9,0.001]
[1765772584549,33.07552093,3117.0,3116.9,0.001]
[1765772584754,33.04344586,3117.0,3116.9,0.001]
[1765772584953,29.66544586,3117.0,3116.9,0.001]
[1765772585152,34.623139,3117.0,3116.9,0.001]
[1765772586077,37.83135202,3117.0,3116.9,0.001]
[1765772587977,10.87197302,3117.0,3116.9,0.001]
[1765772588292,37.83135202,3117.0,3116.9,0.001]
[1765772591366,37.95989684,3117.0,3116.9,0.001]
[1765772592788,37.96189684,3117.0,3116.9,0.001]
[1765772592992,41.33989684,3117.0,3116.9,0.001]
[1765772593193,47.58691532,3117.0,3116.9,0.001]
[1765772602008,47.09901532,3117.0,3116.9,0.001]
[1765772602521,47.58691532,3117.0,3116.9,0.001]
[1765772603208,47.75455897,3117.0,3116.9,0.001]
[1765772603608,52.20625211,3117.0,3116.9,0.001]
[1765772603803,47.75455897,3117.0,3116.9,0.001]
[1765772605621,52.20625211,3117.0,3116.9,0.001]
[1765772606298,47.75455897,3117.0,3116.9,0.001]
[1765772607508,47.75694879,3117.0,3116.9,0.001]
[1765772608108,47.25094879,3117.0,3116.9,0.001]
[1765772608322,47.75794879,3117.0,3116.9,0.001]
[1765772609432,20.79856979,3117.0,3116.9,0.001]
[1765772609604,47.75794879,3117.0,3116.9,0.001]
[1765772612536,20.79856979,3117.0,3116.9,0.001]
[1765772612838,47.75794879,3117.0,3116.9,0.001]
[1765772616452,52.21203175,3117.0,3116.9,0.001]
[1765772617046,47.75794879,3117.0,3116.9,0.001]
[1765772617423,47.75794879,3117.0,3115.5,0.6523]
[1765772617424,0.405504,3116.0,3115.5,0.6523]
[1765772617577,28.48443336,3115.9,3115.7,0.4634]
[1765772617878,31.6617039,3115.9,3115.8,0.4634]
[1765772618048,32.1251039,3115.9,3115.8,0.9609]
[1765772619158,32.1251039,3115.9,3115.8,0.4985]
[1765772619348,37.11487327,3115.9,3115.8,0.001]
[1765772619533,37.58907327,3115.9,3115.8,0.001]
[1765772620188,37.58907327,3115.9,3114.6,0.1384]
[1765772620189,27.95820866,3115.1,3114.6,0.1384]
[1765772620479,29.70909623,3115.1,3114.6,0.4624]
[1765772620639,27.94535829,3114.8,3114.4,0.001]
[1765772620833,27.94535829,3114.6,3114.4,0.001]
[1765772621077,30.79059412,3114.6,3114.4,0.001]
[1765772621282,30.79059412,3114.6,3114.5,0.0677]
[1765772621435,30.79059412,3114.6,3114.4,0.001]
[1765772621637,31.15614653,3114.5,3114.4,0.001]
[1765772622073,31.34944653,3114.5,3114.4,0.001]
[1765772622397,31.85644653,3114.5,3114.4,0.001]
[1765772623078,31.8692969,3114.5,3114.4,0.001]
[1765772625373,32.2336642,3114.5,3114.4,0.001]
[1765772626278,5.2742852,3114.5,3114.4,0.001]
[1765772626840,32.2336642,3114.5,3114.4,0.001]
[1765772627788,32.2336642,3114.5,3113.3,0.001]
[1765772627789,0.01285037,3113.4,3113.3,0.001]
[1765772627974,0.51985037,3113.4,3113.3,0.001]
[1765772628799,0.92535437,3113.4,3113.3,0.001]
[1765772629876,18.85931302,3113.4,3113.3,0.001]
[1765772630992,8.20033902,3113.4,3113.3,0.001]
[1765772631571,4.33467702,3113.4,3113.3,0.001]
[1765772631775,7.08865502,3113.4,3113.3,0.001]
[1765772632768,10.10306302,3113.4,3113.3,0.001]
[1765772633199,11.43583482,3113.4,3113.3,0.001]
[1765772633410,12.01631011,3113.4,3113.3,0.001]
[1765772633774,33.20730311,3113.4,3113.3,0.001]
[1765772636017,31.36753131,3113.4,3113.3,0.001]
[1765772636243,31.87453131,3113.4,3113.3,0.001]
[1765772636450,31.36753131,3113.4,3113.3,0.001]
[1765772636618,4.40815231,3113.4,3113.3,0.001]
[1765772636940,9.29726831,3113.4,3113.3,0.001]
[1765772637148,8.89176431,3113.4,3113.3,0.001]
[1765772637357,6.36597931,3113.4,3113.3,0.001]
[1765772637649,7.09328231,3113.4,3113.3,0.001]
[1765772637805,27.03518031,3113.4,3113.3,0.001]
[1765772638008,27.44068431,3113.4,3113.3,0.001]
[1765772638551,18.69444131,3113.4,3113.3,0.001]
[1765772638720,4.71775231,3113.4,3113.3,0.001]
[1765772638920,17.52638331,3113.4,3113.3,0.001]
[1765772639118,15.88552431,3113.4,3113.3,0.001]
[1765772639335,15.53305131,3113.4,3113.3,0.001]
[1765772640341,13.72005131,3113.4,3113.3,0.001]
[1765772640847,14.87305531,3113.4,3113.3,0.001]
[1765772641049,15.07045531,3113.4,3113.3,0.001]
[1765772641252,14.70115231,3113.4,3113.3,0.001]
[1765772641543,7.07078131,3113.4,3113.3,0.001]
[1765772641947,7.07114231,3113.4,3113.3,0.001]
[1765772643317,13.31816079,3113.4,3113.3,0.001]
[1765772645048,24.47041179,3113.4,3113.3,0.001]
[1765772646026,39.58238263,3113.4,3113.3,0.001]
[1765772646335,40.04318263,3113.4,3113.3,0.001]
[1765772646540,39.58238263,3113.4,3113.3,0.001]
[1765772646751,39.58399475,3113.4,3113.3,0.001]
[1765772647045,40.04479475,3113.4,3113.3,0.001]
[1765772649097,39.58399475,3113.4,3113.3,0.001]
[1765772649588,40.04479475,3113.4,3113.3,0.001]
[1765772651787,48.05318868,3113.4,3113.3,0.001]
[1765772653961,0.98597929,3112.9,3112.0,0.001]
[1765772654170,27.95820866,3112.1,3112.0,0.001]
[1765772654497,32.92776542,3112.1,3112.0,0.001]
[1765772654673,29.90801338,3112.1,3112.0,0.001]
[1765772655010,30.36881338,3112.1,3112.0,0.001]
[1765772655212,33.58207773,3112.1,3112.0,0.001]
[1765772656283,34.3738653,3112.1,3112.0,0.001]
[1765772656484,1.46337929,3112.0,3110.8,0.001]
[1765772656685,32.40791505,3110.9,3110.8,0.001]
[1765772656895,32.91591505,3110.9,3110.8,0.001]
[1765772657298,37.0961779,3110.9,3110.8,0.001]
[1765772657900,37.4605452,3110.9,3110.8,0.001]
[1765772659248,38.1221452,3110.9,3110.8,0.001]
[1765772659545,38.5829452,3110.9,3110.8,0.001]
[1765772659748,37.9379452,3110.9,3110.8,0.001]
[1765772659947,38.5829452,3110.9,3110.8,0.001]
[1765772661389,34.12038844,3110.9,3110.8,0.001]
[1765772662545,7.16100944,3110.9,3110.8,0.001]
[1765772662719,34.12038844,3110.9,3110.8,0.001]
[1765772664225,34.12038844,3110.9,3109.5,0.001]
[1765772664226,3.378,3110.7,3109.5,0.001]
[1765772664421,27.364883,3109.6,3109.5,0.001]
[1765772664716,14.78710529,3109.6,3109.5,0.001]
[1765772665120,15.84498058,3109.6,3109.5,0.001]
[1765772665284,16.30578058,3109.6,3109.5,0.001]
[1765772665486,18.07542827,3109.6,3109.5,0.001]
[1765772665722,33.18788127,3109.6,3109.5,0.001]
[1765772666218,0.58047529,3109.5,3108.4,0.0048726]
[1765772666422,0.405504,3109.1,3108.4,0.0048726]
[1765772666726,0.98597929,3108.7,3108.4,0.0048726]
[1765772666894,0.913504,3108.6,3107.1,3.21837682]
[1765772667204,0.98597929,3109.4,3107.3,0.58047529]
[1765772667404,0.405504,3108.6,3107.3,0.58047529]
[1765772667606,0.01285037,3109.0,3107.8,6.19983394]
[1765772667813,0.01285037,3109.0,3107.9,0.58047529]
[1765772667994,0.509,3108.9,3108.0,0.62803092]
[1765772668202,0.509,3108.9,3108.0,0.75685187]
[1765772668397,0.509,3108.8,3108.4,0.001]
[1765772668811,0.01285037,3109.0,3108.4,0.001]
[1765772669019,0.509,3108.9,3108.4,0.001]
[1765772670326,0.01285037,3108.6,3108.4,0.001]
[1765772672327,0.01285037,3109.0,3108.4,0.001]
[1765772672502,0.509,3108.9,3108.4,0.001]
[1765772673597,0.01285037,3109.7,3108.4,0.001]
[1765772673803,0.01285037,3109.3,3108.4,6.43517834]
[1765772674008,0.01285037,3109.3,3108.5,1.02649645]
[1765772674443,0.01285037,3109.9,3108.8,0.58047529]
[1765772674608,0.01285037,3109.9,3108.8,0.61264204]
[1765772674943,0.509,3109.9,3109.2,6.19983394]
[1765772675235,0.52185037,3110.1,3109.3,0.58047529]
[1765772675418,0.01285037,3109.9,3109.4,0.67803092]
[1765772675841,0.01285037,3109.9,3109.5,6.43190222]
[1765772676346,0.01285037,3110.3,3109.5,6.43190222]
[1765772676502,0.509,3110.2,3109.5,6.43190222]
[1765772677040,0.01285037,3110.1,3109.5,6.43190222]
[1765772677209,0.01285037,3110.1,3109.6,0.71099331]
[1765772677805,0.01285037,3110.1,3109.7,6.43148856]
[1765772678042,0.509,3110.0,3109.7,6.43148856]
[1765772678238,0.01285037,3110.1,3109.7,6.43148856]
[1765772678439,0.509,3110.0,3109.7,6.43148856]
[1765772678637,0.509,3110.0,3109.8,0.71424819]
[1765772680336,0.509,3110.0,3109.9,3.21553747]
[1765772681654,0.01285037,3110.1,3109.9,3.21553747]
[1765772681858,0.52185037,3110.1,3109.9,3.21553747]
[1765772682357,0.52185037,3110.1,3109.6,0.71099331]
[1765772682358,0.52385037,3110.1,3109.6,0.71099331]
[1765772682531,0.01285037,3109.9,3109.5,3.21588383]
[1765772683055,0.01285037,3109.9,3108.9,6.19983394]
[1765772683237,0.01285037,3109.5,3108.5,3.21693966]
[1765772683439,0.509,3109.4,3108.5,3.21693966]
[1765772683640,0.509,3109.4,3108.6,0.90226926]
[1765772683840,0.509,3109.4,3108.6,0.32179397]
[1765772684134,0.509,3109.4,3108.6,0.90226926]
[1765772684349,0.509,3109.4,3108.6,7.33603364]
[1765772685045,0.509,3109.4,3108.6,10.55291583]
[1765772685248,0.01285037,3110.3,3109.3,0.58047529]
[1765772685453,0.509,3110.2,3109.4,0.58047529]
[1765772686262,0.509,3110.2,3109.5,6.43190222]
[1765772689862,0.509,3110.2,3109.5,3.21595111]
[1765772689863,0.01285037,3109.9,3109.5,3.21595111]
[1765772690358,0.01285037,3109.9,3109.5,6.43190222]
[1765772691770,0.01285037,3109.9,3109.2,0.58047529]
[1765772692059,0.01285037,3109.9,3109.3,0.70131598]
[1765772693858,0.01285037,3109.9,3109.4,6.43210908]
[1765772695475,0.01285037,3110.3,3109.4,6.43210908]
[1765772695476,0.002,3110.1,3109.4,6.43210908]
[1765772695772,0.509,3110.0,3109.4,9.64816362]
[1765772696149,0.509,3109.9,3109.4,9.64816362]
[1765772696342,0.509,3109.9,3109.5,1.03494796]
[1765772697961,0.002,3110.1,3109.6,6.43169538]
[1765772698474,0.511,3110.1,3109.6,6.43169538]
[1765772699882,0.002,3110.1,3109.6,3.21584769]
[1765772700170,0.002,3110.1,3109.4,6.43210908]
[1765772700371,0.01485037,3110.1,3109.4,4.25101759]
[1765772700676,0.01485037,3110.1,3109.4,3.21605454]
[1765772700968,0.01485037,3110.1,3109.4,6.43210908]
[1765772701974,0.01485037,3110.1,3109.4,3.21605454]
[1765772701975,0.01285037,3109.9,3109.4,3.21605454]
[1765772702169,0.01285037,3109.9,3108.8,9.69931927]
[1765772702170,0.01285037,3109.9,3108.9,7.01361883]
[1765772702474,0.01285037,3109.7,3109.0,1.67129381]
[1765772702854,0.509,3109.6,3109.0,1.67129381]
[1765772704155,0.509,3109.6,3109.1,6.43272972]
[1765772704550,0.509,3109.6,3109.1,9.64909458]
[1765772707190,0.509,3109.6,3109.1,6.43272972]
[1765772707894,0.01485037,3109.9,3109.2,1.71251836]
[1765772708183,0.509,3109.8,3109.2,1.71251836]
[1765772708854,0.509,3109.8,3109.4,0.58047529]
[1765772709463,0.01285037,3109.7,3109.3,3.21615797]
[1765772710174,0.01285037,3109.7,3109.3,6.43231594]
[1765772712100,0.01285037,3109.7,3109.1,0.58047529]
[1765772712392,0.52185037,3109.7,3109.1,1.60348016]
[1765772712794,0.52185037,3109.7,3109.1,1.02300487]
[1765772713095,0.01285037,3109.5,3109.1,1.02300487]